bitfinex/quotes_SOLUSD_20251106
["timestamp","ask_amount","ask_price","bid_price","bid_amount"]
[1762452943083,7.982471,156.59,156.58,0.1]
[1762452943281,14.36787052,156.61,156.58,0.1]
[1762452943485,0.69,156.63,156.59,0.71]
[1762452943683,14.36664043,156.64,156.59,0.71]
[1762452943885,7.982471,156.64,156.59,8.692471]
[1762452944189,7.982471,156.64,156.58,14.00648333]
[1762452944190,7.982471,156.62,156.58,7.62]
[1762452944389,110.882471,156.61,156.58,7.62]
[1762452944886,111.572471,156.61,156.58,7.62]
[1762452945062,102.9,156.61,156.58,14.71637479]
[1762452945262,103.59,156.61,156.58,14.00637479]
[1762452945475,0.69,156.6,156.58,7.62]
[1762452945683,8.672471,156.6,156.58,7.62]
[1762452946400,0.69,156.6,156.58,7.62]
[1762452946983,8.672471,156.6,156.58,7.62]
[1762452948789,0.69,156.6,156.58,7.62]
[1762452949489,8.672471,156.6,156.58,7.62]
[1762452949875,7.982471,156.59,156.58,7.62]
[1762452950076,8.672471,156.59,156.58,0.1]
[1762452950483,0.69,156.59,156.58,0.1]
[1762452950685,18.46129869,156.59,156.58,0.1]
[1762452951287,24.84740252,156.59,156.58,0.1]
[1762452957995,16.86493152,156.59,156.58,0.1]
[1762452958166,9.78882769,156.55,156.54,0.1]
[1762452958364,18.56976563,156.55,156.54,0.1]
[1762452958592,19.25976563,156.55,156.54,0.1]
[1762452959498,25.64750117,156.55,156.54,0.1]
[1762452960478,25.64750117,156.55,156.51,0.1]
[1762452960479,30.38082769,156.52,156.51,0.1]
[1762452960683,17.77129869,156.5,156.49,0.1]
[1762452961087,7.982471,156.5,156.49,0.1]
[1762452961481,24.85107504,156.5,156.49,0.1]
[1762452963192,110.882471,156.51,156.49,0.1]
[1762452963399,102.9,156.51,156.5,0.69]
[1762452963696,102.9,156.51,156.49,0.1]
[1762452964397,109.97938865,156.51,156.49,0.1]
[1762452964597,117.96185965,156.51,156.49,0.1]
[1762452965300,110.882471,156.51,156.49,0.1]
[1762452965502,102.9,156.51,156.49,0.79]
[1762452965811,102.9,156.51,156.49,0.1]
[1762452966114,8.672471,156.5,156.49,0.1]
[1762452966416,18.46129869,156.5,156.49,0.1]
[1762452967499,24.85107504,156.5,156.49,0.1]
[1762452968405,30.38082769,156.48,156.47,0.1]
[1762452968607,46.68212282,156.48,156.47,0.1]
[1762452968946,47.37212282,156.48,156.47,0.1]
[1762452969676,53.76271586,156.48,156.47,0.1]
[1762452970077,53.76271586,156.48,156.45,0.1]
[1762452970078,9.78882769,156.47,156.45,0.1]
[1762452970295,9.78882769,156.47,156.41,0.2]
[1762452970296,9.78882769,156.43,156.41,0.2]
[1762452970585,8.78160154,156.42,156.37,0.2]
[1762452970788,17.77129869,156.38,156.37,0.2]
[1762452971081,18.57063364,156.38,156.37,0.2]
[1762452971396,18.46129869,156.38,156.37,0.2]
[1762452971596,24.16597831,156.38,156.37,0.2]
[1762452971908,24.85597831,156.38,156.37,0.2]
[1762452972106,45.44797831,156.38,156.37,1e-08]
[1762452972487,24.85597831,156.38,156.37,1e-08]
[1762452972703,20.592,156.34,156.31,0.1]
[1762452972914,7.982471,156.32,156.31,0.1]
[1762452973299,7.982471,156.33,156.31,0.79]
[1762452973501,7.982471,156.34,156.31,0.79]
[1762452973703,14.37882779,156.34,156.31,0.79]
[1762452973919,7.982471,156.36,156.31,0.79]
[1762452974221,7.982471,156.35,156.31,0.79]
[1762452974390,7.982471,156.35,156.31,7.18747244]
[1762452974591,7.982471,156.36,156.31,7.18747244]
[1762452974806,7.982471,156.36,156.32,0.69]
[1762452976003,7.982471,156.34,156.32,0.69]
[1762452976395,7.982471,156.36,156.32,0.69]
[1762452976600,7.982471,156.39,156.33,7.982471]
[1762452976804,7.982471,156.38,156.33,7.982471]
[1762452977008,7.982471,156.38,156.34,0.69]
[1762452977520,9.78882769,156.36,156.31,0.1]
[1762452977721,7.982471,156.32,156.31,0.1]
[1762452977903,14.37960508,156.32,156.31,0.1]
[1762452978218,24.85843277,156.32,156.31,0.1]
[1762452978399,16.18596177,156.32,156.31,0.1]
[1762452978600,24.16843277,156.32,156.31,0.1]
[1762452979305,14.37960508,156.32,156.31,0.1]
[1762452979602,0.79923273,156.4,156.31,0.1]
[1762452979804,6.39590661,156.35,156.31,0.1]
[1762452980111,7.982471,156.32,156.31,0.1]
[1762452980893,18.46129869,156.32,156.31,0.1]
[1762452981718,18.46129869,156.32,156.31,1e-08]
[1762452981907,32.84090377,156.32,156.31,1e-08]
[1762452982108,30.38082769,156.28,156.2,0.69]
[1762452982309,7.982471,156.23,156.2,0.69]
[1762452982619,7.982471,156.22,156.2,0.69]
[1762452983197,7.982471,156.22,156.17,50.0]
[1762452983198,7.982471,156.21,156.18,0.71]
[1762452983398,7.982471,156.2,156.17,0.71]
[1762452983604,9.78882769,156.22,156.18,0.71]
[1762452983907,17.77129869,156.22,156.18,0.71]
[1762452984101,7.982471,156.21,156.18,0.71]
[1762452984308,7.982471,156.2,156.15,0.71]
[1762452984510,7.982471,156.2,156.16,0.71]
[1762452984717,32.19341823,156.22,156.11,0.71]
[1762452984718,7.982471,156.17,156.11,0.71]
[1762452985022,7.982471,156.15,156.11,0.71]
[1762452985201,7.982471,156.14,156.11,0.71]
[1762452985405,17.77129869,156.12,156.07,0.71]
[1762452985732,7.982471,156.09,156.07,0.71]
[1762452985898,9.78882769,156.16,156.09,6.40656031]
[1762452986104,7.982471,156.16,156.11,7.982471]
[1762452986316,7.982471,156.16,156.11,5.12318806]
[1762452986317,5.12318806,156.16,156.11,5.12318806]
[1762452986625,5.12318806,156.14,156.09,0.71]
[1762452986806,10.45882769,156.17,156.09,5.83318806]
[1762452987008,5.12318806,156.14,156.09,5.83318806]
[1762452987321,5.12318806,156.1,156.07,0.71]
[1762452987526,9.78882769,156.11,156.08,0.71]
[1762452987527,5.12318806,156.11,156.08,0.71]
[1762452988822,14.91201575,156.14,156.09,5.12318806]
[1762452989127,25.71518806,156.16,156.11,5.12318806]
[1762452989303,25.71518806,156.16,156.1,5.83318806]
[1762452989702,25.71518806,156.16,156.11,0.71]
[1762452989920,25.71518806,156.16,156.11,7.11569322]
[1762452990104,5.12318806,156.15,156.11,0.71]
[1762452990308,5.12318806,156.12,156.09,0.71]
[1762452990509,5.12318806,156.11,156.08,7.54]
[1762452990711,5.12318806,156.1,156.08,7.54]
[1762452990912,5.12318806,156.12,156.08,8.25]
[1762452991208,5.12318806,156.13,156.09,0.71]
[1762452991407,0.80035856,156.18,156.12,5.12318806]
[1762452991634,5.12318806,156.19,156.14,5.12318806]
[1762452991824,5.12318806,156.19,156.14,0.71]
[1762452992012,11.52574657,156.19,156.15,0.71]
[1762452992333,11.52598335,156.19,156.15,0.71]
[1762452992739,5.12318806,156.18,156.15,0.71]
[1762452993320,5.12318806,156.18,156.11,50.0]
[1762452993321,9.78882769,156.15,156.11,0.71]
[1762452993520,5.12318806,156.14,156.11,0.71]
[1762452994119,6.40491897,156.13,156.11,0.71]
[1762452994319,6.40491897,156.13,156.08,13.9668967]
[1762452994320,5.12318806,156.12,156.08,0.71]
[1762452994634,5.12318806,156.14,156.09,5.83318806]
[1762452994811,6.40368852,156.16,156.09,5.83318806]
[1762452995009,5.12318806,156.14,156.09,0.71]
[1762452995236,5.12318806,156.13,156.09,0.71]
[1762452995423,22.41290983,156.16,156.06,14.67777107]
[1762452995424,5.12318806,156.11,156.06,14.67777107]
[1762452995620,5.12318806,156.12,156.06,19.09095913]
[1762452995833,5.12318806,156.12,156.07,5.83318806]
[1762452996034,5.12318806,156.13,156.08,11.52994704]
[1762452996216,5.12318806,156.15,156.08,7.11675898]
[1762452996423,5.12318806,156.12,156.07,0.71]
[1762452996735,11.25939128,156.14,156.07,0.71]
[1762452997042,5.12318806,156.12,156.08,0.69]
[1762452997239,9.78882769,156.16,156.09,5.12318806]
[1762452997240,16.1925928,156.16,156.09,5.12318806]
[1762452997441,16.1925928,156.16,156.1,5.12318806]
[1762452997637,5.12318806,156.15,156.1,5.12318806]
[1762452997838,5.12318806,156.14,156.1,0.69]
[1762452998147,11.52780382,156.14,156.1,0.69]
[1762452998525,5.12318806,156.15,156.1,12.21933172]
[1762452998742,7.10319853,156.18,156.12,5.12318806]
[1762452998743,6.40319853,156.18,156.12,5.12318806]
[1762452998945,11.52574771,156.19,156.14,5.12318806]
[1762452999442,11.52574771,156.19,156.15,0.69]
[1762452999641,14.91201575,156.21,156.16,5.12318806]
[1762452999843,5.12318806,156.2,156.15,5.81318806]
[1762453000044,9.78882769,156.23,156.17,5.12318806]
[1762453000252,5.12318806,156.22,156.17,5.81318806]
[1762453000823,5.12318806,156.21,156.16,7.58]
[1762453001023,5.12318806,156.17,156.12,0.69]
[1762453001332,5.12318806,156.17,156.12,5.81318806]
[1762453001723,5.12318806,156.18,156.13,5.81318806]
[1762453002119,5.12318806,156.18,156.14,0.69]
[1762453002937,11.28908377,156.2,156.14,0.69]
[1762453003242,5.12318806,156.18,156.14,0.69]
[1762453003541,11.52568442,156.19,156.14,0.69]
[1762453003846,5.12318806,156.17,156.12,5.81318806]
[1762453004027,5.12318806,156.15,156.12,0.69]
[1762453004450,11.526967,156.16,156.12,0.69]
[1762453005120,10.58918625,156.18,156.13,5.12318806]
[1762453005121,6.40298939,156.18,156.13,5.12318806]
[1762453005321,6.40259557,156.19,156.14,5.12318806]
[1762453005537,5.12318806,156.19,156.14,5.12318806]
[1762453005726,5.12318806,156.19,156.15,0.69]
[1762453005932,21.292,156.21,156.15,5.81318806]
[1762453006130,11.52415805,156.23,156.18,11.52598132]
[1762453006524,5.12318806,156.22,156.18,0.69]
[1762453006728,0.7,156.25,156.19,5.12318806]
[1762453006931,5.82318806,156.25,156.2,5.12318806]
[1762453007128,5.12318806,156.24,156.18,0.69]
[1762453007445,5.12318806,156.22,156.18,0.69]
[1762453008353,11.52442984,156.22,156.18,0.69]
[1762453008541,6.40124178,156.22,156.18,0.69]
[1762453008742,11.52442984,156.22,156.18,0.69]
[1762453009165,5.12318806,156.22,156.18,0.69]
[1762453009950,11.52452716,156.22,156.18,0.69]
[1762453010461,12.22410769,156.23,156.18,0.69]
[1762453010632,5.12318806,156.22,156.18,0.69]
[1762453011934,5.82318806,156.22,156.18,0.69]
[1762453012140,5.12318806,156.22,156.18,0.69]
[1762453012333,6.40163881,156.21,156.18,0.69]
[1762453012534,6.40106424,156.23,156.18,7.09281628]
[1762453012729,12.1942523,156.23,156.18,7.09281628]
[1762453013167,5.12318806,156.22,156.18,7.09285534]
[1762453013329,12.1942523,156.23,156.18,0.69]
[1762453013533,5.12318806,156.22,156.18,6.40275748]
[1762453013759,5.12318806,156.19,156.13,0.65]
[1762453013933,10.58903254,156.21,156.13,0.65]
[1762453013934,5.12318806,156.16,156.13,0.65]
[1762453014348,5.12318806,156.17,156.13,0.65]
[1762453014552,5.12318806,156.15,156.1,0.65]
[1762453014743,5.12318806,156.13,156.1,0.65]
[1762453014950,10.45882769,156.16,156.1,0.65]
[1762453015153,5.12318806,156.15,156.1,0.65]
[1762453015325,5.12318806,156.14,156.1,0.65]
[1762453016139,5.12318806,156.13,156.1,0.65]
[1762453016360,6.40532923,156.12,156.1,0.65]
[1762453016562,6.40532923,156.12,156.11,7.58]
[1762453016760,11.52851729,156.12,156.08,0.65]
[1762453016932,11.52851729,156.12,156.11,7.58]
[1762453017247,11.52851729,156.12,156.1,7.58]
[1762453018234,11.52851729,156.12,156.08,0.65]
[1762453018556,11.52851729,156.12,156.09,7.58]
[1762453018759,5.12318806,156.1,156.06,7.05765311]
[1762453018975,5.12318806,156.1,156.06,0.65]
[1762453019139,5.12318806,156.09,156.06,8.23]
[1762453019338,5.12318806,156.09,156.06,0.65]
[1762453019549,5.12318806,156.07,156.03,0.65]
[1762453019747,33.00814615,156.12,156.03,12.18220548]
[1762453019748,9.78882769,156.11,156.03,12.18220548]
[1762453019950,11.53028217,156.08,156.04,7.58]
[1762453020140,11.53028217,156.08,156.04,8.23]
[1762453020674,5.79318806,156.07,156.02,0.65]
[1762453020842,5.12318806,156.03,155.97,0.75]
[1762453021047,14.91201575,156.06,155.97,0.1]
[1762453021048,5.12318806,155.99,155.97,0.1]
[1762453021260,5.79318806,155.98,155.97,0.1]
[1762453021664,5.12318806,155.98,155.97,0.1]
[1762453021867,0.67,156.04,155.97,12.28461848]
[1762453022043,20.592,156.06,155.99,5.12318806]
[1762453022044,5.12318806,156.05,155.99,5.12318806]
[1762453022243,5.12318806,156.04,156.0,7.58]
[1762453022444,5.12318806,156.02,155.97,6.51143042]
[1762453022653,5.12318806,156.02,155.98,7.58]
[1762453022878,5.79318806,156.02,155.97,6.51143042]
[1762453023173,5.12318806,156.02,155.97,6.51143042]
[1762453023374,5.12318806,155.99,155.97,0.1]
[1762453023557,5.12318806,155.98,155.97,0.1]
[1762453023742,5.12318806,156.01,155.97,0.75]
[1762453023947,5.12318806,156.03,155.97,5.87318806]
[1762453024148,9.78882769,156.0,155.97,0.1]
[1762453024358,35.50401575,155.98,155.97,0.1]
[1762453024548,9.78882769,155.97,155.87,0.65]
[1762453024749,5.12318806,155.93,155.88,0.65]
[1762453025054,5.12318806,155.94,155.88,13.39318806]
[1762453025451,5.12318806,155.94,155.89,13.39318806]
[1762453025650,5.12318806,155.95,155.89,5.77318806]
[1762453025852,5.12318806,155.95,155.91,6.41395676]
[1762453026051,5.12318806,155.96,155.9,8.27]
[1762453026250,5.12318806,155.95,155.91,0.65]
[1762453026478,5.12318806,155.96,155.91,0.65]
[1762453026675,5.12318806,155.97,155.92,12.74318806]
[1762453026849,5.12318806,155.97,155.92,7.62]
[1762453027178,5.12318806,155.97,155.93,8.27]
[1762453027388,0.67,155.96,155.88,0.65]
[1762453027550,0.67,155.96,155.88,8.27]
[1762453027551,5.12318806,155.92,155.88,8.27]
[1762453027757,5.12318806,155.94,155.88,13.39318806]
[1762453027987,5.12318806,155.94,155.89,0.65]
[1762453028281,5.12318806,155.95,155.9,7.62]
[1762453028482,30.38082769,155.97,155.89,0.65]
[1762453028689,36.79272081,155.97,155.9,8.27]
[1762453028850,5.12318806,155.94,155.9,0.65]
[1762453029055,5.12318806,155.95,155.91,7.62]
[1762453029256,5.12318806,155.93,155.89,6.41466248]
[1762453029454,11.26031525,155.96,155.88,0.65]
[1762453029688,5.12318806,155.91,155.88,0.65]
[1762453030054,6.41334187,155.93,155.87,7.62]
[1762453030250,1.47159035,155.94,155.88,0.65]
[1762453030448,19.25483777,156.0,155.88,0.65]
[1762453030449,21.262,155.99,155.88,5.77318806]
[1762453030677,5.12318806,155.97,155.88,0.65]
[1762453030862,5.12318806,155.95,155.89,5.77318806]
[1762453031064,5.12318806,155.95,155.89,0.65]
[1762453031494,27.00275934,155.99,155.91,5.12318806]
[1762453031670,27.00275934,155.99,155.9,57.64]
[1762453031671,5.12318806,155.98,155.93,5.12318806]
[1762453031869,5.12318806,155.96,155.91,0.65]
[1762453032062,5.12318806,155.94,155.92,7.64]
[1762453032270,5.12318806,155.95,155.92,7.64]
[1762453032468,5.79318806,155.96,155.92,7.64]
[1762453032885,1.47138479,155.98,155.92,8.29]
[1762453033069,5.12318806,155.98,155.93,0.65]
[1762453033257,5.12318806,155.97,155.93,0.65]
[1762453033569,10.59026386,155.97,155.9,0.65]
[1762453033771,5.12318806,155.96,155.91,0.65]
[1762453033980,5.12318806,155.96,155.91,5.77318806]
[1762453034480,11.53467744,155.97,155.92,0.65]
[1762453034681,5.12318806,155.96,155.92,0.65]
[1762453034857,5.12318806,155.95,155.89,8.29]
[1762453035060,5.12318806,155.94,155.89,8.29]
[1762453035270,5.12318806,155.94,155.89,7.62]
[1762453035452,5.79318806,155.93,155.89,0.65]
[1762453035662,5.12318806,155.92,155.89,7.64]
[1762453036162,5.12318806,155.93,155.89,8.29]
[1762453036680,5.12318806,155.92,155.89,7.64]
[1762453037264,5.12318806,155.92,155.89,8.29]
[1762453037673,5.12318806,155.92,155.89,7.64]
[1762453037983,5.12318806,155.92,155.87,12.1886371]
[1762453038167,5.12318806,155.92,155.88,0.65]
[1762453038366,5.12318806,155.91,155.82,32.0875884]
[1762453038575,5.12318806,155.88,155.85,0.65]
[1762453038771,5.12318806,155.88,155.84,8.27]
[1762453038968,5.12318806,155.88,155.81,50.0]
[1762453039186,5.12318806,155.82,155.78,7.06930928]
[1762453039494,9.78882769,155.78,155.72,0.75]
[1762453039663,5.12318806,155.75,155.72,0.1]
[1762453039864,9.78882769,155.78,155.72,0.75]
[1762453040190,10.45882769,155.83,155.76,5.12318806]
[1762453040370,5.12318806,155.8,155.76,7.64]
[1762453040563,9.78882769,155.81,155.72,22.57587449]
[1762453040762,0.67,155.82,155.75,5.12318806]
[1762453040964,5.79318806,155.82,155.76,5.12318806]
[1762453041186,5.79318806,155.82,155.73,58.31]
[1762453041187,14.91201575,155.81,155.74,0.65]
[1762453041368,5.12318806,155.8,155.74,5.77318806]
[1762453041687,9.78882769,155.81,155.74,0.65]
[1762453041688,14.91201575,155.81,155.74,0.65]
[1762453041992,0.67,155.8,155.74,0.65]
[1762453042298,5.79318806,155.8,155.75,6.42054574]
[1762453042476,0.67,155.8,155.75,7.08054574]
[1762453042668,5.81318806,155.8,155.75,7.08054574]
[1762453042871,5.12318806,155.8,155.76,0.66]
[1762453043093,5.81318806,155.8,155.75,7.08054574]
[1762453043285,5.12318806,155.79,155.75,7.08054574]
[1762453043485,5.81318806,155.8,155.75,7.08054574]
[1762453043690,5.12318806,155.79,155.75,7.08054574]
[1762453043872,5.12318806,155.8,155.76,0.66]
[1762453044073,16.89648909,155.82,155.77,6.41972138]
[1762453044074,9.78882769,155.82,155.77,6.41972138]
[1762453044274,9.78882769,155.84,155.79,5.12318806]
[1762453044585,5.12318806,155.8,155.76,0.66]
[1762453044896,5.12318806,155.78,155.75,7.66]
[1762453045387,5.12318806,155.79,155.75,0.66]
[1762453045599,30.83837612,155.76,155.69,50.0]
[1762453045892,9.78882769,155.68,155.6,0.66]
[1762453046094,5.12318806,155.64,155.6,0.66]
[1762453046277,5.12318806,155.62,155.6,0.66]
[1762453046478,8.10665372,155.61,155.57,0.66]
[1762453046866,31.78391153,155.65,155.57,0.66]
[1762453047196,8.10665372,155.6,155.57,0.66]
[1762453047384,8.10665372,155.58,155.54,8.38]
[1762453047583,8.10665372,155.6,155.54,15.82665372]
[1762453047771,0.80303224,155.66,155.56,50.0]
[1762453048096,9.78882769,155.68,155.61,6.42632221]
[1762453048391,8.10665372,155.63,155.56,14.14838776]
[1762453048608,8.10665372,155.61,155.57,0.66]
[1762453048768,8.10665372,155.61,155.57,8.4]
[1762453049169,8.10665372,155.62,155.58,0.66]
[1762453049471,8.10665372,155.6,155.58,0.66]
[1762453049668,8.10665372,155.61,155.58,0.66]
[1762453049864,8.10665372,155.6,155.58,0.66]
[1762453050390,8.10665372,155.6,155.56,0.66]
[1762453050691,8.10665372,155.6,155.56,7.74]
[1762453050993,0.79776594,155.63,155.56,7.74]
[1762453050994,8.10665372,155.58,155.56,8.4]
[1762453051192,1.39776594,155.63,155.54,6.42921435]
[1762453051517,8.10665372,155.62,155.57,0.66]
[1762453051664,8.10665372,155.64,155.58,50.0]
[1762453051867,8.10665372,155.63,155.58,7.74]
[1762453052079,43.67403021,155.68,155.59,0.66]
[1762453052080,8.10665372,155.61,155.59,0.66]
[1762453052281,1.39776594,155.67,155.54,7.74]
[1762453052282,16.21432405,155.63,155.54,7.74]
[1762453052597,8.10665372,155.6,155.55,0.66]
[1762453052797,8.10665372,155.6,155.56,7.74]
[1762453053292,8.10665372,155.62,155.57,0.66]
[1762453053699,11.18659363,155.67,155.58,7.74]
[1762453053700,1.39776594,155.67,155.58,7.74]
[1762453053998,8.10665372,155.62,155.59,0.66]
[1762453054177,8.10665372,155.62,155.59,7.08705967]
[1762453054378,8.10665372,155.62,155.59,0.66]
[1762453054593,8.10665372,155.62,155.59,7.08694037]
[1762453054972,8.10665372,155.64,155.6,0.66]
[1762453055167,8.10665372,155.65,155.6,0.66]
[1762453055385,8.10665372,155.64,155.6,0.66]
[1762453055588,8.10665372,155.63,155.6,0.66]
[1762453055985,8.10665372,155.68,155.61,8.10665372]
[1762453056192,8.10665372,155.68,155.61,6.42614932]
[1762453056193,8.10665372,155.67,155.61,6.42614932]
[1762453056365,16.21192867,155.69,155.62,0.66]
[1762453056686,8.10665372,155.69,155.63,7.74]
[1762453056871,8.10665372,155.68,155.63,7.74]
[1762453057377,8.10665372,155.68,155.63,8.44]
[1762453057568,6.42223759,155.71,155.64,0.7]
[1762453057766,8.10665372,155.7,155.64,0.7]
[1762453057982,8.10665372,155.71,155.64,8.80665372]
[1762453058203,8.10665372,155.69,155.64,7.12472168]
[1762453058507,8.10665372,155.7,155.65,0.7]
[1762453058980,8.10665372,155.71,155.65,8.80665372]
[1762453059181,16.21020525,155.73,155.65,0.7]
[1762453059393,8.10665372,155.71,155.66,0.7]
[1762453060071,8.10665372,155.72,155.66,8.80665372]
[1762453060388,8.10665372,155.73,155.67,6.42384531]
[1762453060593,8.10665372,155.72,155.68,7.72]
[1762453060901,8.10665372,155.72,155.68,8.42]
[1762453061089,8.10665372,155.72,155.69,0.7]
[1762453061267,8.10665372,155.73,155.69,0.7]
[1762453061700,8.10665372,155.74,155.69,0.7]
[1762453062370,8.10665372,155.74,155.7,6.42260757]
[1762453062575,8.10665372,155.74,155.69,7.12295694]
[1762453062806,8.10665372,155.74,155.7,0.7]
[1762453063303,16.2085885,155.77,155.7,0.7]
[1762453063515,8.10665372,155.76,155.7,8.80665372]
[1762453063706,8.10665372,155.79,155.72,8.10665372]
[1762453064038,8.10665372,155.79,155.73,8.42]
[1762453064196,8.10665372,155.8,155.74,8.10665372]
[1762453064389,8.10665372,155.8,155.75,14.52719946]
[1762453064596,8.10665372,155.78,155.74,14.84091258]
[1762453064804,8.10665372,155.79,155.74,22.9475663]
[1762453065405,8.10665372,155.79,155.74,16.52665372]
[1762453065603,17.60477482,155.81,155.74,15.82665372]
[1762453065915,8.10665372,155.8,155.75,8.80665372]
[1762453066222,0.6,155.8,155.72,14.14139433]
[1762453066515,8.10665372,155.74,155.7,7.12259553]
[1762453066717,23.86390625,155.79,155.7,8.42]
[1762453066893,8.10665372,155.74,155.7,7.12259594]
[1762453067293,8.10665372,155.74,155.7,8.42]
[1762453067499,8.10665372,155.74,155.71,0.7]
[1762453067900,8.10665372,155.74,155.69,8.80665372]
[1762453068117,8.10665372,155.74,155.7,7.72]
[1762453068295,14.52796837,155.74,155.69,8.42]
[1762453068617,8.10665372,155.71,155.68,7.72]
[1762453068915,8.10665372,155.71,155.67,8.4]
[1762453069131,8.10665372,155.7,155.65,0.7]
[1762453069289,8.10665372,155.68,155.62,0.7]
[1762453069612,0.79776594,155.73,155.6,0.7]
[1762453069613,8.10665372,155.63,155.6,0.7]
[1762453069816,8.10665372,155.68,155.62,8.10665372]
[1762453070019,8.10665372,155.69,155.63,8.80665372]
[1762453070203,8.10665372,155.69,155.64,15.82665372]
[1762453070408,31.17859363,155.71,155.64,15.82665372]
[1762453070409,20.592,155.71,155.65,8.10665372]
[1762453070618,8.10665372,155.7,155.65,0.7]
[1762453070921,8.10665372,155.67,155.62,0.7]
[1762453071094,8.10665372,155.67,155.62,8.80665372]
[1762453071300,8.10665372,155.68,155.63,8.10665372]
[1762453071706,8.10665372,155.68,155.63,16.52665372]
[1762453071906,27.01424674,155.71,155.64,0.7]
[1762453072222,8.10665372,155.7,155.65,8.10665372]
[1762453072408,8.10665372,155.7,155.64,16.52665372]
[1762453072712,8.10665372,155.69,155.64,8.80665372]
[1762453072918,8.10665372,155.69,155.64,15.23173081]
[1762453073124,8.10665372,155.69,155.64,22.95173081]
[1762453073304,8.10665372,155.69,155.64,22.25173081]
[1762453073504,8.10665372,155.68,155.64,0.72]
[1762453073825,8.10665372,155.67,155.64,0.72]
[1762453074222,8.10665372,155.67,155.62,8.82665372]
[1762453074524,8.10665372,155.67,155.63,0.72]
[1762453074729,8.10665372,155.69,155.64,8.10665372]
[1762453075202,8.10665372,155.68,155.64,0.72]
[1762453076311,8.10665372,155.69,155.64,8.82665372]
[1762453076712,6.42266153,155.7,155.65,8.82665372]
[1762453077122,8.10665372,155.71,155.66,0.72]
[1762453077421,14.52911966,155.71,155.66,0.72]
[1762453077730,6.42246594,155.71,155.66,0.72]
[1762453077931,14.52911966,155.71,155.66,0.72]
[1762453078237,8.10665372,155.7,155.66,0.72]
[1762453078609,6.4230201,155.69,155.66,0.72]
[1762453079215,14.52926378,155.7,155.66,0.72]
[1762453079424,6.42261006,155.7,155.66,8.82665372]
[1762453079811,20.592,155.74,155.67,8.82665372]
[1762453079812,36.64469441,155.74,155.67,8.82665372]
[1762453080018,8.10665372,155.72,155.67,8.82665372]
[1762453080217,20.592,155.74,155.68,0.72]
[1762453080521,8.10665372,155.73,155.68,8.82665372]
[1762453080913,117.427341,155.75,155.7,8.10665372]
[1762453081528,117.4272891,155.75,155.7,16.54665372]
[1762453081727,117.4272891,155.75,155.71,0.72]
[1762453081933,8.10665372,155.74,155.7,8.44]
[1762453082137,8.10665372,155.74,155.7,7.72]
[1762453082341,8.10665372,155.74,155.71,0.72]
[1762453082808,117.4272891,155.75,155.71,0.72]
[1762453083012,102.9,155.81,155.74,8.10665372]
[1762453083210,111.00665372,155.81,155.75,16.52665372]
[1762453083426,102.9,155.81,155.77,8.10665372]
[1762453083919,102.9,155.81,155.78,0.72]
[1762453084110,102.9,155.81,155.77,0.72]
[1762453084321,102.9,155.81,155.77,8.82665372]
[1762453084714,3.33871766,155.82,155.78,0.72]
[1762453084715,11.44537138,155.82,155.78,0.72]
[1762453084911,17.86309125,155.82,155.78,0.72]
[1762453085109,9.75643753,155.82,155.77,7.72]
[1762453085358,10.55422187,155.82,155.77,0.72]
[1762453085547,8.10665372,155.81,155.77,0.72]
[1762453086037,8.10665372,155.81,155.76,8.10665372]
[1762453086238,8.10665372,155.81,155.76,8.82665372]
[1762453086917,6.41848523,155.8,155.76,8.82665372]
[1762453087138,6.41848523,155.8,155.76,15.24675072]
[1762453087320,15.12513895,155.8,155.75,8.10665372]
[1762453087528,8.10665372,155.81,155.76,8.10665372]
[1762453087708,6.41848523,155.8,155.76,8.10665372]
[1762453087914,11.44537138,155.82,155.77,8.82665372]